Cogmind - Beta 10.2 @@@ ROGUE MODE // 2021.09.30 @ 00:53:02 Player: Rathori Result: Destroyed by Lightning with EMDS Performance ------------- Evolutions (5) 2500 Regions Visited (10) 2000 Robots Destroyed (141) 705 Value Destroyed (4946) 4946 Prototype IDs (17) 340 Alien Tech Used (0) 0 Bonus (1944) 1944 TOTAL SCORE: 12435 Bonus ------- High Alert Combat Kills 74 Follower Combat Kills 1895 Network Hubs Disabled 200 Met Zhirov 300 Built Enhanced Grunts 300 A7 Reached Mainframe 300 Friendly Fire -1125 Cogmind --------- Core Integrity 0/1000 Matter 290/300 Energy 99/100 System Corruption 20% Temperature Cool (0) Movement Core (50) Location -5/Hub_04(d) Parts ------- > --- POWER (2) -------- (None) > --- PROPULSION (4) --- (None) > --- UTILITY (9) ------ Advanced Terrain Scan Processor Advanced Targeting Computer Advanced Targeting Computer > --- WEAPON (2) ------- (None) > --- INVENTORY (4) ---- Micro Fission Core Relay Coupler [Grunt] (21) Mass Driver Heavy Rocket Launcher Peak State ------------ > --- POWER ------------ Light Neutrino Core Micro Fission Core > --- PROPULSION ------- Gyrokinetic Inverter Cooled Gravmag System Cooled Gravmag System Combat Gravmag System > --- UTILITY ---------- Improved Cryofiber Web Large Storage Unit Advanced Sensor Array Advanced Signal Interpreter Advanced Targeting Computer Improved Weapon Cycler Hardened Medium Armor Plating Hacking Suite Advanced System Shield > --- WEAPON ----------- Compact Ion Cannon Improved KE Penetrator > --- INVENTORY -------- Micro Fission Core Micro Fission Core Improved Terrain Scanner Advanced Terrain Scan Processor Improved Transmission Jammer Improved System Backup Module Antimatter Cannon Mass Driver Heavy Rocket Launcher Phasing Sabre [Rating: 91] Favorites ----------- Power Improved Ion Engine Engine Improved Ion Engine Power Core Light Neutrino Core Propulsion Aluminum Leg Treads Medium Treads Leg Aluminum Leg Hover Unit Antigrav System Utility Large Storage Unit Device Advanced Sensor Array Storage Large Storage Unit Processor Improved Targeting Computer Hackware Hacking Suite Protection Hardened Medium Armor Plating Weapon Mass Driver Energy Gun EM Pulse Gun Energy Cannon Phase Cannon Ballistic Gun Shotgun Ballistic Cannon Mass Driver Launcher Heavy Rocket Launcher Impact Weapon Heavy Flail Slashing Weapon Phasing Sabre Build | -11 -10 -9 -8 -7 -6 -5 -5 -5 -5 -5 ------- Run | Scr Mat Mat Mat Fac Fac Fac Ext Cet Arc Hub Slots Evolved 10 | . . 2 2 2 2 2 . . . . Power 1 | . . . . . . 1 . . . . Propulsion 2 | . . 1 1 . . . . . . . Utility 7 | . . 1 1 2 2 1 . . . . Weapon . | . . . . . . . . . . . Parts Attached 225 | . 15 34 39 28 30 37 25 4 5 8 Power 22 | . 2 5 2 3 4 4 1 1 . . Engine 16 | . 2 5 2 3 2 2 . . . . Core 6 | . . . . . 2 2 1 1 . . Reactor . | . . . . . . . . . . . Propulsion 59 | . 5 10 14 9 7 7 4 . 2 1 Treads 1 | . . . . . . . . . . 1 Leg 46 | . 5 10 14 9 7 . . . 1 . Wheel . | . . . . . . . . . . . Hover 12 | . . . . . . 7 4 . 1 . Flight . | . . . . . . . . . . . Utility 68 | . 4 6 8 7 11 15 11 . 1 5 Device 44 | . 1 4 4 2 9 11 10 . . 3 Storage 2 | . 1 . . . . 1 . . . . Processor 10 | . 2 1 2 1 1 1 . . . 2 Hackware 4 | . . . . 2 . 1 . . 1 . Protection 8 | . . 1 2 2 1 1 1 . . . Artifact . | . . . . . . . . . . . Weapon 76 | . 4 13 15 9 8 11 9 3 2 2 Energy Gun 6 | . 2 1 1 . 1 1 . . . . Energy Cannon 18 | . 1 2 3 1 2 6 1 1 . 1 Ballistic Gun 21 | . 1 5 3 7 3 . . 1 1 . Ballistic Cannon 15 | . . 2 4 . 1 3 4 . . 1 Launcher 7 | . . 2 . . . 1 3 1 . . Special Weapon . | . . . . . . . . . . . Impact Weapon 7 | . . 1 4 1 1 . . . . . Slashing Weapon 2 | . . . . . . . 1 . 1 . Piercing Weapon . | . . . . . . . . . . . Special Melee Weapon . | . . . . . . . . . . . Unidentified Prototypes 17 | . . 3 3 . 2 5 2 1 1 . Parts Lost 46 | . 2 1 7 3 4 1 4 1 10 13 Power 5 | . . . . . 1 . 1 1 1 1 Propulsion 14 | . 1 . 4 1 . . 1 . 3 4 Utility 13 | . . . 1 . 1 . 1 . 4 6 Weapon 14 | . 1 1 2 2 2 1 1 . 2 2 Highest Loss Streak 11 | . 1 1 4 2 4 1 2 1 10 11 Average Slot Usage (%) 98 | . 97 98 99 98 99 99 99 100 77 49 Engine 7 | . 14 10 9 6 4 6 3 . . . Core 2 | . . . . . 1 4 7 11 8 3 Leg 22 | . 26 32 35 29 25 5 . . . . Hover 5 | . . . . . . 16 22 23 17 4 Device 11 | . 4 9 5 5 15 21 16 17 11 8 Storage 8 | . 17 11 9 7 6 5 5 5 5 3 Processor 14 | . 6 11 18 15 20 12 11 11 11 16 Hackware 5 | . . . . 15 9 5 11 11 8 3 Protection 2 | . . . 3 1 . 4 5 5 2 . Energy Cannon 4 | . 6 5 2 3 2 4 4 4 1 2 Ballistic Gun 7 | . 14 12 8 9 6 . . 3 2 . Ballistic Cannon 3 | . . 3 6 . 2 4 4 1 . 1 Naked Turns . | . . . . . . . . . . . Heaviest Build 71 | 11 27 34 36 36 51 71 66 55 47 38 Greatest Support 78 | 20 20 30 54 78 78 76 75 75 75 28 Greatest Overweight (x) 10 | . 8 1 . . . 4 1 . 1 10 Average Overweight (x) . | . 1 . . . . . . . . . Largest Inventory Capacity 12 | . 12 10 10 10 10 10 10 10 10 10 Average Capacity 10 | . 10 10 10 10 10 10 10 10 10 8 Most Carried 11 | . 11 10 10 10 10 10 10 10 9 9 Average Carried 9 | . 8 9 9 9 9 9 9 9 9 5 Final Capacity 10 | 6 10 10 10 10 10 10 10 10 10 4 Final Carried 10 | 6 10 10 10 10 10 10 10 9 9 4 Class Distribution -------------------- 48% | Mutant 24% | Hacker-Mutant 9% | Scavenger-Mutant 6% | Hacker-Scout 4% | Scout 3% | Commander-Mutant 3% | Skirmisher Dominant Class ---------------- Mutant | -10/Materials Mutant | -9/Materials Mutant | -8/Materials Hacker-Mutant | -7/Factory Hacker-Mutant | -6/Factory Mutant | -5/Factory Hacker-Scout | -5/Extension Hacker-Mutant | -5/Cetus Hacker-Mutant | -5/Archives Mutant | -5/Hub_04(d) Resources | -11 -10 -9 -8 -7 -6 -5 -5 -5 -5 -5 ----------- Run | Scr Mat Mat Mat Fac Fac Fac Ext Cet Arc Hub Matter Collected 4861 | 200 283 721 1034 412 758 567 678 118 40 50 Remotely . | . . . . . . . . . . . Salvage Created 5939 | . 589 844 1146 757 863 823 516 175 110 116 Parts 291 | . 44 36 53 38 43 36 19 9 12 1 Haulers Intercepted 11 | . 2 3 2 2 1 . . . . 1 Recyclers Shooed 7 | . . 1 . 1 3 1 1 . . . Parts Field Recycled . | . . . . . . . . . . . Retrieved Matter . | . . . . . . . . . . . Parts Self-Destructed . | . . . . . . . . . . . Prevented . | . . . . . . . . . . . Kills | -11 -10 -9 -8 -7 -6 -5 -5 -5 -5 -5 ------- Run | Scr Mat Mat Mat Fac Fac Fac Ext Cet Arc Hub Combat Hostiles Destroyed 104 | . 12 21 25 9 8 16 11 2 . . Guns 39 | . 7 8 15 6 2 . . 1 . . Cannons 49 | . 3 7 10 2 6 14 7 . . . AOE 15 | . 2 6 . . . 2 4 1 . . Classes Destroyed 13 | . 6 3 2 1 1 . . . . . Worker 1 | . 1 . . . . . . . . . Builder 3 | . 2 . . . . . 1 . . . Hauler 11 | . 2 3 2 2 1 . . . . 1 Recycler 10 | . . 1 2 2 3 2 . . . . Operator 2 | . . . . . 1 1 . . . . Watcher 6 | . 1 1 1 1 2 . . . . . Swarmer 20 | . 3 7 4 . . 4 2 . . . Grunt 42 | . 9 9 10 5 1 3 5 . . . Brawler 1 | . . 1 . . . . . . . . Duelist 2 | . . . 1 . . 1 . . . . Sentry 21 | . . 4 8 2 1 2 4 . . . Hunter 3 | . . . 2 . . . . 1 . . Programmer 14 | . . . . 2 6 6 . . . . Cetus Guard 1 | . . . . . . . . 1 . . Thug 2 | . . . . . . . . 2 . . Guerrilla 2 | . . . . . . . . 2 . . Best Kill Streak 6 | . 6 6 5 4 2 4 4 1 . 1 Combat Bots Only 6 | . 4 6 5 4 2 4 3 1 . . Max Kills in Single Turn 4 | . 2 3 2 1 1 2 2 4 . 1 Gunslinging . | . . . . . . . . . . . Exploded 3 | . 1 3 . . . 1 2 1 . . Melee . | . . . . . . . . . . . Uniques/NPCs Destroyed . | . . . . . . . . . . . Combat | -11 -10 -9 -8 -7 -6 -5 -5 -5 -5 -5 -------- Run | Scr Mat Mat Mat Fac Fac Fac Ext Cet Arc Hub Damage Taken 8708 | . 413 681 1872 834 891 834 722 199 927 1335 Core 1675 | . 92 112 126 185 156 58 113 19 186 628 Absorbed by Shields 191 | . . . . . . . 19 172 . . Core Remaining (%) 77 | 100 63 72 77 73 81 . . . . . Volleys Fired 475 | . 47 63 102 49 78 87 36 9 . 4 Largest 2 | . 2 2 2 2 2 2 2 2 . 2 Hottest 155 | . 80 88 100 100 143 155 155 130 . 130 Shots Fired 817 | . 91 118 189 90 125 127 57 14 . 6 Gun 401 | . 81 69 121 66 60 . . 4 . . Cannon 394 | . 10 45 68 24 65 122 48 6 . 6 Launcher 22 | . . 4 . . . 5 9 4 . . Special . | . . . . . . . . . . . Kinetic 514 | . 47 75 180 66 77 39 22 5 . 3 Thermal 241 | . 22 39 9 6 48 83 26 5 . 3 Explosive 22 | . . 4 . . . 5 9 4 . . Electromagnetic 40 | . 22 . . 18 . . . . . . Robot Hit Streak 21 | . 7 9 17 16 21 11 13 2 . 3 Robot Miss Streak 7 | . 4 6 7 3 7 3 2 1 . 3 Penetration Max . | . . . . . . . . . . . Secondary Targets 1 | . . . 1 . . . . . . . Max Gunslinging Chain 1 | . . . 1 . . . . . . . Shots Hit Robots 517 | . 47 81 136 69 76 63 31 9 3 2 Core Hits 264 | . 23 42 52 26 34 27 33 22 3 2 Critical Hits 10 | . . 1 2 1 2 1 1 1 1 . Critical Kills 5 | . . 1 . . 1 1 . 1 1 . Critical Parts Destroyed 5 | . . . 2 1 1 . 1 . . . Melee Attacks 32 | . . 2 13 . 1 . 10 . 6 . Impact 16 | . . 2 13 . 1 . . . . . Slashing 16 | . . . . . . . 10 . 6 . Piercing . | . . . . . . . . . . . Sneak Attacks 1 | . . . 1 . . . . . . . Combat Hostiles . | . . . . . . . . . . . Follow-up Attacks . | . . . . . . . . . . . Damage Inflicted 14573 | . 816 1558 2730 1454 2097 2696 1375 1104 535 208 Guns 4525 | . 504 678 1657 881 772 . . 33 . . Cannons 6869 | . 174 620 1028 573 1238 2150 857 153 . 76 Explosions 2597 | . 138 260 . . 85 546 518 918 . 132 Melee 580 | . . . 45 . . . . . 535 . Ramming 2 | . . . . . 2 . . . . . Kinetic 6922 | . 244 770 2535 881 1123 907 356 75 . 31 Thermal 4074 | . 399 528 150 125 972 1243 501 111 . 45 Explosive 2242 | . . 260 . . . 546 518 918 . . Electromagnetic 753 | . 173 . . 448 . . . . . 132 Impact 45 | . . . 45 . . . . . . . Slashing 535 | . . . . . . . . . 535 . Piercing . | . . . . . . . . . . . Highest Corruption 20 | . . 3 . 2 5 3 2 . . 20 Average Corruption 2 | . . 3 . 1 2 1 1 . . 9 Corruption Purged 12 | . . . . . 7 3 2 . . . Effects 57 | . . 27 . 3 9 6 6 . . 6 Message Errors 20 | . . 8 . 2 3 4 2 . . 1 Matter Fused 7 | . . 6 . . 1 . . . . . Heat Flow Errors 11 | . . 5 . 1 1 1 2 . . 1 Energy Discharges 7 | . . 2 . . 2 1 1 . . 1 Parts Rejected 2 | . . . . . 1 . . . . 1 Data Loss (minor) 2 | . . 2 . . . . . . . . Misdirections 2 | . . . . . . . . . . 2 Targeting Errors 6 | . . 4 . . 1 . 1 . . . Overload Shots . | . . . . . . . . . . . Overflow Damage 521 | . 34 . 28 39 132 160 34 63 . 31 Projectiles 289 | . . . 3 39 132 106 9 . . . Explosions 207 | . 34 . . . . 54 25 63 . 31 Melee 25 | . . . 25 . . . . . . . Knockbacks 26 | . . 1 10 . 4 7 3 . . 1 Impact 1 | . . . 1 . . . . . . . Kinetic 23 | . . 1 8 . 4 6 3 . . 1 Secondary 2 | . . . 1 . . 1 . . . . Self-Inflicted Damage 367 | . 49 . . . 148 . 62 . . 108 Shots 5 | . 1 . . . 2 . 1 . . 1 Rammed . | . . . . . . . . . . . Targets Rammed 2 | . . . . . 2 . . . . . Kicked 2 | . . . . . 2 . . . . . Crushed . | . . . . . . . . . . . Highest Temperature 593 | . 96 259 313 228 300 528 593 130 . 242 Average Temperature 96 | . 28 75 76 89 107 102 166 54 . 83 Received Heat Transfer 1648 | . 135 246 765 252 27 99 106 . 9 9 Effects 23 | . . 1 2 . . 6 14 . . . Shutdowns 7 | . . . . . . 3 4 . . . Energy Bleed 4 | . . 1 1 . . . 2 . . . Interference 2 | . . . 1 . . 1 . . . . Matter Decay 2 | . . . . . . 1 1 . . . Short Circuit 3 | . . . . . . 1 2 . . . Damage (major) 5 | . . . . . . . 5 . . . Siege Activations . | . . . . . . . . . . . Robots Corrupted 1 | . . . . 1 . . . . . . Combat Hostiles 1 | . . . . 1 . . . . . . Parts Fried 4 | . . . . 2 . . . 1 . 1 Impact Corruptions 1 | . . . 1 . . . . . . . Robots Melted . | . . . . . . . . . . . Combat Hostiles . | . . . . . . . . . . . Parts Melted 7 | . 1 4 . . . 1 1 . . . Heat Transferred 5517 | . 879 1110 222 185 1012 1369 555 148 . 37 Parts Sabotaged . | . . . . . . . . . . . Parts Stolen . | . . . . . . . . . . . Parts Stripped . | . . . . . . . . . . . Power Chain Reactions 3 | . 3 . . . . . . . . . Missiles Intercepted . | . . . . . . . . . . . Alert | -11 -10 -9 -8 -7 -6 -5 -5 -5 -5 -5 ------- Run | Scr Mat Mat Mat Fac Fac Fac Ext Cet Arc Hub Peak Influence 806 | . 290 391 419 260 162 258 806 717 709 390 Initial 451 | . . 68 44 165 70 56 24 451 281 184 Average 166 | . 104 194 210 152 59 111 230 641 476 321 Maximum Alert Level 3 | . 1 1 2 1 . 1 3 3 3 1 Low Security (%) 72 | . 85 59 61 73 100 88 57 . . 17 Level 1 20 | . 14 40 31 26 . 11 17 . 27 82 Level 2 5 | . . . 6 . . . 20 49 70 . Level 3 1 | . . . . . . . 5 50 1 . Level 4 . | . . . . . . . . . . . Level 5 . | . . . . . . . . . . . High Security . | . . . . . . . . . . . Max Security . | . . . . . . . . . . . Squads Dispatched 32 | . 5 2 6 5 6 4 3 . . 1 Investigation 8 | . 2 2 1 . 1 1 1 . . . Extermination 8 | . . . . 2 4 2 . . . . Reinforcement 9 | . 3 . 2 . 1 1 1 . . 1 Assault 1 | . . . . . . . 1 . . . Garrison 6 | . . . 3 3 . . . . . . Intercept . | . . . . . . . . . . . Construction Impeded 3 | . . . . . 1 1 1 . . . Haulers Reinforced . | . . . . . . . . . . . Stealth | -11 -10 -9 -8 -7 -6 -5 -5 -5 -5 -5 --------- Run | Scr Mat Mat Mat Fac Fac Fac Ext Cet Arc Hub Distress Signals 19 | . 1 3 2 1 1 3 6 2 . . Communications Jammed 79 | . . . . . 9 56 1 . . 13 Distress Signals 79 | . . . . . 9 56 1 . . 13 Times Spotted 240 | . 23 29 42 14 17 38 39 10 20 8 Peak Tracking Total 16 | . 6 4 7 4 3 7 6 5 16 7 Tactical Retreats 11 | . 2 . 2 1 . 1 4 1 . . Traps | -11 -10 -9 -8 -7 -6 -5 -5 -5 -5 -5 ------- Run | Scr Mat Mat Mat Fac Fac Fac Ext Cet Arc Hub Traps Triggered 9 | . 2 1 . 5 1 . . . . . Indirectly . | . . . . . . . . . . . Trap Hack Attempts . | . . . . . . . . . . . Triggered . | . . . . . . . . . . . Disarmed . | . . . . . . . . . . . Reprogrammed 4 | . . . . . . 4 . . . . Reused 1 | . . . . . . 1 . . . . Traps Extracted . | . . . . . . . . . . . Installed . | . . . . . . . . . . . Triggered 1 | . . . . . . 1 . . . . Machines | -11 -10 -9 -8 -7 -6 -5 -5 -5 -5 -5 ---------- Run | Scr Mat Mat Mat Fac Fac Fac Ext Cet Arc Hub Machines Disabled 12 | . . 2 . . 5 1 2 . . 2 Max in Single Turn 3 | . . 1 . . 3 1 1 . . 2 Garrison Access 1 | . . . . . . . . . . 1 Network Hub 1 | . . . . . . . . . . 1 Machines Sabotaged . | . . . . . . . . . . . Garrisons Compromised . | . . . . . . . . . . . Overloaded Fab Kills . | . . . . . . . . . . . Fab Network Shutdowns . | . . . . . . . . . . . Hacking | -11 -10 -9 -8 -7 -6 -5 -5 -5 -5 -5 --------- Run | Scr Mat Mat Mat Fac Fac Fac Ext Cet Arc Hub Machines Accessed 52 | . 4 13 2 3 7 10 10 2 . 1 Terminals 41 | . 3 10 2 3 4 7 10 2 . . Fabricators 2 | . . . . . 1 1 . . . . Repair Stations 6 | . . 2 . . 2 2 . . . . Recycling Units 2 | . 1 1 . . . . . . . . Scanalyzers . | . . . . . . . . . . . Garrison Access 1 | . . . . . . . . . . 1 Total Hacks 198 | . 17 52 8 9 35 34 35 5 . 3 Successful 109 | . 12 25 7 6 21 17 15 5 . 1 Failed 88 | . 5 26 1 3 14 17 20 . . 2 Catastrophic 8 | . 1 1 . . 1 2 2 . . 1 Database Lockouts 1 | . . 1 . . . . . . . . Manual 126 | . 17 40 5 9 15 15 22 1 . 2 Terminals 153 | . 12 41 8 9 21 22 35 5 . . Fabricators 3 | . . . . . 2 1 . . . . Repair Stations 28 | . . 5 . . 12 11 . . . . Recycling Units 11 | . 5 6 . . . . . . . . Scanalyzers . | . . . . . . . . . . . Garrison Access 3 | . . . . . . . . . . 3 Terminal Hacks 34 | . 2 3 2 . 7 6 9 5 . . Record 12 | . . . . . 6 2 . 4 . . Part Schematic 2 | . . 1 . . 1 . . . . . Open Door 8 | . . . . . . 1 6 1 . . Alert Level 1 | . . . 1 . . . . . . . Unreport Threat 7 | . 2 1 . . . 2 2 . . . Reprogram Traps 1 | . . . . . . 1 . . . . Zone Layout 3 | . . 1 1 . . . 1 . . . Fabricator Hacks 2 | . . . . . 1 1 . . . . Build 2 | . . . . . 1 1 . . . . Repair Station Hacks 19 | . . 4 . . 10 5 . . . . Scan Component 11 | . . 2 . . 6 3 . . . . Repair 8 | . . 2 . . 4 2 . . . . Recycling Unit Hacks . | . . . . . . . . . . . Scanalyzer . | . . . . . . . . . . . Garrison Access Hacks 1 | . . . . . . . . . . 1 Seal Access 1 | . . . . . . . . . . 1 Unauthorized Hacks 53 | . 10 18 5 6 3 5 6 . . . Terminals 46 | . 7 14 5 6 3 5 6 . . . Track 12 | . 1 4 2 2 . 1 2 . . . Assimilate 5 | . 1 . . . 1 . 3 . . . Botnet 22 | . 3 8 2 3 2 3 1 . . . Operators 7 | . 2 2 1 1 . 1 . . . . Fabricators . | . . . . . . . . . . . Repair Stations . | . . . . . . . . . . . Recycling Units 7 | . 3 4 . . . . . . . . Reject 2 | . 1 1 . . . . . . . . Recyclers 2 | . 1 1 . . . . . . . . Mask 1 | . . 1 . . . . . . . . Tunnel 2 | . 1 1 . . . . . . . . Scanalyzers . | . . . . . . . . . . . Garrison Access . | . . . . . . . . . . . Data Cores Recovered 1 | . . . . . . 1 . . . . Used . | . . . . . . . . . . . Hacking Detections 44 | . 4 12 2 3 6 10 6 . . 1 Full Trace Events 4 | . . 1 . . 1 1 1 . . . Feedback Events . | . . . . . . . . . . . Feedback Blocked . | . . . . . . . . . . . Robot Schematics Acquired . | . . . . . . . . . . . Robots Built . | . . . . . . . . . . . Matter . | . . . . . . . . . . . Time . | . . . . . . . . . . . Total Robot Build Rating . | . . . . . . . . . . . Part Schematics Acquired 2 | . . 1 . . 1 . . . . . Parts Built 4 | . . . . . 2 2 . . . . Matter 424 | . . . . . 190 234 . . . . Time 164 | . . . . . 47 117 . . . . Total Part Build Rating 24 | . . . . . 10 14 . . . . Parts Repaired 8 | . . 2 . . 4 2 . . . . Time 280 | . . 58 . . 187 35 . . . . Parts Recycled . | . . . . . . . . . . . Recycled Matter . | . . . . . . . . . . . Retrieved Matter . | . . . . . . . . . . . Retrieved Components . | . . . . . . . . . . . Parts Scanalyzed . | . . . . . . . . . . . Part Schematics Acquired . | . . . . . . . . . . . Parts Damaged . | . . . . . . . . . . . Bothacking | -11 -10 -9 -8 -7 -6 -5 -5 -5 -5 -5 ------------ Run | Scr Mat Mat Mat Fac Fac Fac Ext Cet Arc Hub Used RIF Installer . | . . . . . . . . . . . Robots Hacked . | . . . . . . . . . . . Non-combat . | . . . . . . . . . . . Combat . | . . . . . . . . . . . Robot Hacks Applied . | . . . . . . . . . . . Relay Couplers Released 1 | . . . . . . . . . . 1 Machine Destruction 1 | . . . . . . . . . . 1 Robots Rewired 28 | . . . . . . . 28 . . . Allies Hacked 2 | . . . . . 1 . 1 . . . Hacks Repelled . | . . . . . . . . . . . Allies | -11 -10 -9 -8 -7 -6 -5 -5 -5 -5 -5 -------- Run | Scr Mat Mat Mat Fac Fac Fac Ext Cet Arc Hub Total Allies 48 | . . . . . 1 3 39 5 . . Largest Group 13 | . . . . . 1 3 13 13 7 . Highest-Rated Group 693 | . . . . . 10 93 501 693 572 . Highest-Rated Ally 156 | . . . . . 10 31 156 156 156 . Total Orders 2 | . . . . . 2 . . . . . STAY 1 | . . . . . 1 . . . . . FOLLOW 1 | . . . . . 1 . . . . . Ally Attacks 327 | . . . . . . 20 204 51 52 . Total Damage 7920 | . . . . . . 338 4354 1184 2044 . Kills 53 | . . . . . . 3 31 7 12 . Allies Corrupted . | . . . . . . . . . . . Allies Melted . | . . . . . . . . . . . Intel | -11 -10 -9 -8 -7 -6 -5 -5 -5 -5 -5 ------- Run | Scr Mat Mat Mat Fac Fac Fac Ext Cet Arc Hub Robot Analysis Total . | . . . . . . . . . . . Derelict Logs Recovered . | . . . . . . . . . . . Drone Launches . | . . . . . . . . . . . Drone Recoveries . | . . . . . . . . . . . Exploration | -11 -10 -9 -8 -7 -6 -5 -5 -5 -5 -5 ------------- Run | Scr Mat Mat Mat Fac Fac Fac Ext Cet Arc Hub Turns Passed 11850 | . 1148 1861 1822 1146 2410 1543 1291 297 152 180 Spaces Moved 8011 | 1 603 1148 1030 721 1430 1405 987 284 227 175 Core 84 | . 1 . . . . . . . . 83 Treads 41 | . . . . . . . . . . 41 Legs 5161 | 1 602 1148 1030 721 1430 229 . . . . Wheels . | . . . . . . . . . . . Hover 2725 | . . . . . . 1176 987 284 227 51 Flight . | . . . . . . . . . . . Fastest Speed 48 | 120 120 120 120 120 125 53 48 50 50 50 Average Speed 102 | 120 150 126 120 126 125 68 50 50 55 92 Slowest Speed 550 | 120 450 150 120 130 127 330 118 50 100 550 Overloaded Moves . | . . . . . . . . . . . Propulsion Burnouts . | . . . . . . . . . . . Robots Hopped . | . . . . . . . . . . . Cave-ins Triggered . | . . . . . . . . . . . Exploration Rate (%) 52 | 2 79 81 73 20 30 37 65 83 90 22 Regions Visited 10 Branch Regions 4 Pre-discovered Areas 2 | . 1 1 . . . . . . . . Known Exits Taken 9 | . 1 1 1 1 1 1 1 1 1 . Unknown Exits Taken 1 | 1 . . . . . . . . . . Scrap Searched . | . . . . . . . . . . . Spaces Dug 74 | . . 2 12 . 19 27 14 . . . Terrain Destroyed 552 | . 12 23 25 . 51 76 136 58 . 171 Melee 25 | . . 2 12 . 1 . 10 . . . Projectile 106 | . . 1 13 . 24 48 18 . . 2 AOE 421 | . 12 20 . . 26 28 108 58 . 169 Terrain Rammed . | . . . . . . . . . . . Walls Destroyed . | . . . . . . . . . . . Machines Disabled . | . . . . . . . . . . . Actions | -11 -10 -9 -8 -7 -6 -5 -5 -5 -5 -5 --------- Run | Scr Mat Mat Mat Fac Fac Fac Ext Cet Arc Hub Total 10843 | . 755 1443 1430 881 1917 1854 1705 428 242 188 Wait 1688 | . 63 162 205 71 350 283 421 128 5 . Move 8001 | . 602 1147 1029 720 1429 1404 986 283 226 175 Hop . | . . . . . . . . . . . Pick Up 93 | . 14 12 18 5 15 19 7 2 . 1 Fast Attach 44 | . 7 6 6 11 4 6 . . 2 2 Attach 33 | . 1 3 6 4 5 3 4 1 . 6 Detach 2 | . 1 . . . . 1 . . . . Swap 148 | . 7 25 27 13 21 28 21 3 3 . Drop 109 | . 13 23 24 8 12 23 4 2 . . Fire 475 | . 47 63 102 49 78 87 36 9 . 4 Melee 32 | . . 2 13 . 1 . 10 . 6 . Ram . | . . . . . . . . . . . Kick 2 | . . . . . 2 . . . . . Crush . | . . . . . . . . . . . Escape Stasis . | . . . . . . . . . . . Rewire 216 | . . . . . . . 216 . . . Trap . | . . . . . . . . . . . Miscellaneous . | . . . . . . . . . . . Route ------- -11/Scrapyard -10/Materials (discovered 4 exits: *Mat x2 / [*Min x2]) -9/Materials (discovered 4 exits: *Mat x2 / *Min x2) -8/Materials (discovered 3 exits: *Fac x3) -7/Factory (discovered 2 exits: *Fac / [*Low]) -6/Factory -5/Factory -5/Extension (discovered 2 exits: *Fac / *Cet) -5/Cetus (discovered 2 exits: *Fac / *Arc) -5/Archives (discovered 2 exits: *Fac / *Hub) -5/Hub_04(d) History --------- Turn | Location | Event 1 | -11/Scrapyard | Discovered new exit (range 0) 1 | -11/Scrapyard | Entered Materials 296 | -10/Materials | Discovered new exit (range 12) 322 | -10/Materials | Build established: Mutant 458 | -10/Materials | Discovered new exit (range 4) 591 | -10/Materials | Discovered new exit (range 7) 941 | -10/Materials | Discovered new exit (range 14) 1148 | -10/Materials | Identified exit to Materials 1149 | -10/Materials | Entered another Materials area 1149 | -9/Materials | Evolved 2 slots: Propulsion x1, Utility x1 1464 | -9/Materials | Build established: Scavenger-Mutant 1688 | -9/Materials | Discovered new exit (range 7) 1733 | -9/Materials | Identified exit to Materials 1840 | -9/Materials | Build established: Mutant 2170 | -9/Materials | Repaired Imp. Ion Engine 2298 | -9/Materials | Discovered new exit (range 16) 2314 | -9/Materials | Identified exit to Mines 2607 | -9/Materials | Discovered exit to Mines (range 15) 2653 | -9/Materials | Central database locked down 2744 | -9/Materials | Discovered exit to Materials (range 8) 2920 | -9/Materials | Repaired Aluminum Leg 3010 | -9/Materials | Entered another Materials area 3010 | -8/Materials | Evolved 2 slots: Propulsion x1, Utility x1 3350 | -8/Materials | Discovered new exit (range 11) 3361 | -8/Materials | Identified exit to Factory 3624 | -8/Materials | Build established: Scavenger-Mutant 3909 | -8/Materials | Discovered exit to Factory (range 8) 3991 | -8/Materials | Lost 3 parts (2n1w) 4102 | -8/Materials | Build established: Mutant 4327 | -8/Materials | Garrison activated, responded to threat 4521 | -8/Materials | Lost 4 parts (2n1u1w) 4758 | -8/Materials | Discovered exit to Factory (range 13) 4832 | -8/Materials | Entered Factory 4832 | -7/Factory | Evolved 2 slots: Utility x2 5116 | -7/Factory | Build established: Hacker-Mutant 5427 | -7/Factory | Garrison activated, responded to threat 5911 | -7/Factory | Discovered new exit (range 14) 5949 | -7/Factory | Identified exit to Factory 5967 | -7/Factory | Discovered new exit (range 15) 5978 | -7/Factory | Entered another Factory area 5978 | -6/Factory | Evolved 2 slots: Utility x2 6152 | -6/Factory | Repaired Carbon-fiber Leg 6748 | -6/Factory | Repaired Broken Imp. Titanium Leg 6794 | -6/Factory | Repaired Imp. Titanium Leg 6839 | -6/Factory | Repaired Imp. Carbon-fiber Leg 7228 | -6/Factory | Lost 4 parts (1p1u2w) 7479 | -6/Factory | Build established: Mutant 8009 | -6/Factory | Fabricated Fission Core (x2) 8322 | -6/Factory | Discovered new exit (range 14) 8347 | -6/Factory | Identified exit to Factory 8388 | -6/Factory | Entered another Factory area 8388 | -5/Factory | Evolved 2 slots: Power x1, Utility x1 9076 | -5/Factory | Fabricated Antimatter Reactor? 9090 | -5/Factory | Build established: Scout 9395 | -5/Factory | Build established: Mutant 9897 | -5/Factory | Repaired Hrd. Medium Armor Plating 9920 | -5/Factory | Repaired Imp. Terrain Scanner 9927 | -5/Factory | Discovered new exit (range 9) 9930 | -5/Factory | Identified exit to Extension 9931 | -5/Factory | Entered Extension 10111 | -5/Extension | Build established: Hacker-Scout 10175 | -5/Extension | Rescued a captive Derelict 10176 | -5/Extension | Rescued a captive Derelict 10190 | -5/Extension | Rescued a captive Derelict 10190 | -5/Extension | Rescued a captive Derelict 10665 | -5/Extension | Spotted B-75 Beast 10738 | -5/Extension | Rescued a captive Derelict 10811 | -5/Extension | Rescued a captive Derelict 10811 | -5/Extension | Rescued a captive Derelict 10853 | -5/Extension | Rescued a captive Derelict 10910 | -5/Extension | Rescued A7 11131 | -5/Extension | First assault squad dispatched 11182 | -5/Extension | Discovered new exit (range 10) 11182 | -5/Extension | Discovered new exit (range 6) 11185 | -5/Extension | Identified exit to Cetus 11186 | -5/Extension | Identified exit to Factory 11222 | -5/Extension | Entered Cetus 11222 | -5/Cetus | Accompanied by 13 allies (A7) 11227 | -5/Cetus | Acquired a Cetus Manufacturing Module code from A7 11263 | -5/Cetus | Spotted Cetus Guard 11263 | -5/Cetus | Spotted Cetus Guard 11266 | -5/Cetus | Spotted Cetus Guard 11266 | -5/Cetus | Spotted Cetus Guard 11268 | -5/Cetus | Destroyed Cetus Guard 11272 | -5/Cetus | Allies destroyed Cetus Guard 11277 | -5/Cetus | Allies destroyed Cetus Guard 11282 | -5/Cetus | Allies destroyed Cetus Guard 11306 | -5/Cetus | Discovered exit to Factory (range 16) 11375 | -5/Cetus | Started Cetus Manufacturing Module 11400 | -5/Cetus | Manufactured an Enhanced Grunt 11403 | -5/Cetus | Escorted A7 to Cetus Mainframe 11425 | -5/Cetus | Manufactured an Enhanced Grunt 11450 | -5/Cetus | Manufactured an Enhanced Grunt 11464 | -5/Cetus | Discovered new exit (range 15) 11471 | -5/Cetus | Identified exit to Archives 11475 | -5/Cetus | Manufactured an Enhanced Grunt 11482 | -5/Cetus | Spotted Cetus Guard 11482 | -5/Cetus | Spotted Cetus Guard 11500 | -5/Cetus | Manufactured an Enhanced Grunt 11519 | -5/Cetus | Entered Archives 11519 | -5/Archives | Accompanied by 7 allies (A7) 11524 | -5/Archives | Received a hacking code to weaken MAIN.C 11529 | -5/Archives | Met Zhirov 11535 | -5/Archives | Reinforcements dispatched to Archives 11536 | -5/Archives | Unable to access archive contents 11539 | -5/Archives | Discovered new exit (range 13) 11544 | -5/Archives | Identified exit to Hub_04(d) 11572 | -5/Archives | Discovered exit to Factory (range 16) 11580 | -5/Archives | Reinforcements dispatched to Archives 11600 | -5/Archives | Zhirov detonated Archives 11631 | -5/Archives | Lost 10 parts (1p3n4u2w) 11671 | -5/Archives | Entered Hub_04(d) 11702 | -5/Hub_04(d) | Network Hub disabled 11756 | -5/Hub_04(d) | Spotted Lightning 11773 | -5/Hub_04(d) | Spotted Lightning 11781 | -5/Hub_04(d) | System corruption reached 10% 11782 | -5/Hub_04(d) | Spotted Lightning 11794 | -5/Hub_04(d) | Core integrity fell below 50% 11820 | -5/Hub_04(d) | Core integrity fell below 20% 11840 | -5/Hub_04(d) | Lost 11 parts (1p2n6u2w) 11851 | -5/Hub_04(d) | Destroyed by Lightning with EMDS Last Messages --------------- 11809_ Antimatter Cannon destroyed. 11809_ Lrg. Storage Unit destroyed. 11809_ Mic. Fission Core destroyed. 11809_ Adv. System Shield destroyed. 11809_ Adv. Signal Interpreter destroyed. 11813_ Penetrated by EMDS Slug. 11814_ H1WY8MICDBZ6X| D&BG0 VM 11814_ Penetrated by EMDS Slug. 11815_ Slug penetrates Wall. 11815_ Slug penetrates Terminal. 11816_ Penetrated by EMDS Slug. 11824_ Slug penetrates Wall. 11824_ Penetrated by Slug. 11832_ System corrupted: Heat flow error (+282). 11833_ Acquired Adv. Targeting Computer. 11836_ Slug penetrates Control Node. 11836_ Control Node disabled. 11839_ K-01 Serf exits Transfer Station. 11844_ Slug penetrates Door. 11849_ EMDS Slug penetrates Wall. Map ----- +----------------------------------------------------+ | ???????????????????????????????????????????????? | | ???????????????????????????????????????????????? | | ???????????????????????????????????????????????? | | ???????????????????????????????????????????????? | | ???????????????????????????????????????????????? | | ???????????????????????????????????????????????? | | ???????????????????????????????????????????????? | | ???????????????????????????????????????????????? | | ???????????????????????????????????????????????? | | ???????????????????????????????????????????????? | | ???????????????????????????????????????????????? | | ????????????????????? ?????????????????????????? | | ????????????????????# ?????????????????????????? | | ????????????????????+ ?????????????????????????? | | ????????????????????# ????????????????????????? | | ????????????????????# R????????????????????????? | | ????????????????????# ????????????????????????? | | ????????????????????# k##+#?????????#??????????? | | ????????????????????# #???????## ##????????? | | ??????????????####### #???? #????????? | | ??????????????# #?????""" #????????? | | ??????????????# #????? #????????? | | ??????????????+ #??????"" #????????? | | ??????????????# """" #?????? #????????? | | ??????????????# """" #??????? #????????? | | ???????????????# """" @#??????? #????????? | | ???????????????# """" #???????? ######???? | | ???????????????# #???????? # ####? | | ???????????????# ##########+## """#? | | ???????????????# "#? | | ???????????????# ""T"" "#? | | ???????????????# """"" """" "#? | | ???????????????# ########## """" ## """#? | | ???????????????# # ??# """" ## ####? | | ???????????????# # """ # """" #######???? | | ???????????????# # ! " #?????????? | | ???????????????# + """ # #?????????? | | ???????????????# # #######+##?????????? | | ???????????????# # !! ?????? ?????????? | | ???????????????# # !!?????# ???????? | | ???????????????# ######??????# #??????? | | ???????????????# #???#???????# """" #?#????? | | ???????????????# #????? ?????# """" #??#???? | | ???????????????# #??? " ??? # """" ##?????? | | ???????????????# #??" " ??#?# """" #??##??? | | ?????????????#?# #"T " #?## ??#??????? | | ?????????####### #"" !#### ? #????#?# | | ???? ## # #"" " " #######??##???#????# | | ????? / """ # #"" " " ####?###?????#??#??? | | ??????# / / " " ####?###??###?????#? | +----------------------------------------------------+ Best States ------------- Heat Dissipation 67 Energy Generation 32 Energy Capacity 520 Matter Stores 300 Matter Capacity 300 Sight Range 16 Robot Scan Range 16 Terrain Scan Range 16 Terrain Scan Density 210 Jamming Range 12 Base Temperature (-) 150 Armor Coverage 225 Weapon Cycling 20 Evasion (%) 55 Targeting Accuracy 16 Recoil Reduction 1 Offensive Hacking 12 Defensive Hacking 14 Item Schematics ----------------- Imp. Signal Interpreter | -9/Materials | Hacked Imp. Hacking Suite | -6/Factory | Hacked Robot Schematics ------------------ None Fabricated ------------ Fission Core | x2 | -6/Factory | Preloaded Antimatter Reactor | x2 | -5/Factory | Preloaded Alien Tech Used ----------------- None Achievements -------------- Collateral Damage Main Advantage Prison Break Project G-00 Challenges ------------ None Game ------ Seed HellfireGyrokineticBlade Manual? 0 Play Time 03:12:21 Cumulative 49.7 hours Start 2021.09.29 @ 00:22:22 End 2021.09.30 @ 00:53:02 Sessions 14 Manual Loads 0 Difficulty Rogue Special Mode None Game No. 35 Rogue 34 Adventurer 1 Explorer 0 Win Type - Total 0 Types 0/0/0/0/0/0/0/0/0 Lore% 41 Gallery% 43 Achievement% 36 Wizard Run 0 Options --------- ASCII 0 Keyboard 0 Movement Mouse Keybinds 0 Fullscreen 2 Font 24/Smallcaps Map View 76x50 Tactical HUD 1 Map Filters NONE Filters NONE Steam 1 RUN: 1f878df0-974c-48f2-8354-b075df29082b